fUST/lending_fUST_20250809
["ID","MTS","AMOUNT","RATE_DAILY","PERIOD"]
[378158299,1754752250525,-151.0,0.00023835,7]
[378158300,1754752250535,-151.0,0.00023835,7]
[378158301,1754752250544,-239.34814127,0.00023835,2]
[378158302,1754752250553,-151.0,0.00023835,7]
[378158303,1754752250562,-460.0,0.00023835,2]
[378158304,1754752250571,-460.0,0.00023835,2]
[378158305,1754752250580,-460.0,0.00023835,2]
[378158306,1754752250589,-460.0,0.00023835,2]
[378158307,1754752250598,-460.0,0.00023835,2]
[378158308,1754752250607,-157.091636,0.00023835,7]
[378158309,1754752250616,-201.490995,0.00023835,7]
[378158310,1754752250626,-157.091636,0.00023835,7]
[378158311,1754752250635,-201.490995,0.00023835,7]
[378158312,1754752250644,-460.0,0.00023835,2]
[378158313,1754752250772,-552.27,0.00023835,2]
[378158314,1754752250782,-151.0,0.00023835,7]
[378158315,1754752250792,-151.0,0.00023835,7]
[378158316,1754752250801,-451.74252648,0.00023846,2]
[378158317,1754752250811,-927.6,0.00023846,2]
[378158318,1754752250820,-381.90418189,0.00023846,2]
[378158319,1754752250829,-556.0,0.00023895,2]
[378158320,1754752250839,-1513.69,0.00023907,2]
[378158321,1754752250848,-1393.84,0.00023907,2]
[378158322,1754752250857,-1968.56,0.00023907,2]
[378158323,1754752250867,-500.0,0.00023908,2]
[378158324,1754752250876,-556.0,0.00023908,2]
[378158325,1754752250885,-355.46,0.00023929,2]
[378158326,1754752250894,-1500.0,0.00023961,2]
[378158327,1754752250904,-548.74238082,0.00023979,2]
[378158328,1754752250914,-933.12,0.00023979,2]
[378158329,1754752250923,-586.5,0.00023979,2]
[378158330,1754752250933,-558.54,0.00023979,2]
[378158331,1754752250942,-504.62,0.00023979,2]
[378158332,1754752250952,-1024.96,0.00023979,2]
[378158333,1754752250961,-627.42,0.00023979,2]
[378158334,1754752250971,-1110.64,0.00023979,2]
[378158335,1754752250980,-1800.0,0.00023983,2]
[378158336,1754752250989,-759.38,0.00024005,2]
[378158337,1754752250998,-460.0,0.00024005,2]
[378158338,1754752251007,-1708.55,0.00024005,2]
[378158339,1754752251017,-476.07,0.00024005,2]
[378158340,1754752251026,-460.0,0.00024005,2]
[378158341,1754752251035,-966.51,0.00024005,2]
[378158342,1754752251044,-723.96,0.00024005,2]
[378158343,1754752251054,-585.07,0.00024006,2]
[378158344,1754752251063,-460.0,0.00024006,2]
[378158345,1754752251073,-604.09,0.00024006,2]
[378158346,1754752251082,-636.19,0.00024006,2]
[378158347,1754752251091,-523.71,0.00024006,2]
[378158348,1754752251100,-460.0,0.00024006,2]
[378158349,1754752251110,-460.0,0.00024006,2]
[378158350,1754752251121,-3875.91,0.00024006,2]
[378158351,1754752251132,-460.0,0.00024006,2]
[378158352,1754752251141,-460.0,0.00024006,2]
[378158353,1754752251151,-460.0,0.00024006,2]
[378158354,1754752251160,-707.92,0.00024006,2]
[378158355,1754752251170,-670.59,0.00024006,2]
[378158356,1754752251180,-507.77,0.00024006,2]
[378158357,1754752251189,-460.0,0.00024006,2]
[378158358,1754752251199,-460.0,0.00024006,2]
[378158359,1754752251208,-1094.79,0.00024006,2]
[378158360,1754752251218,-590.28,0.00024006,2]
[378158361,1754752251227,-460.0,0.00024006,2]
[378158362,1754752251236,-1278.6,0.00024007,2]
[378158363,1754752251245,-460.0,0.00024007,2]
[378158364,1754752251255,-1182.16,0.00024007,2]
[378158365,1754752251264,-653.18,0.00024007,2]
[378158366,1754752251274,-151.0,0.00024007,7]
[378158367,1754752251283,-150.0,0.00024073,2]
[378158368,1754752251293,-504.3092506,0.0002408,2]
[378158369,1754752251302,-155.769433,0.00024081,2]
[378158370,1754752251312,-200.0,0.00024082,15]
[378158371,1754752251322,-200.0,0.00024082,15]
[378158372,1754752251332,-200.0,0.00024082,15]
[378158373,1754752251342,-200.0,0.00024082,15]
[378158374,1754752251352,-200.0,0.00024082,15]
[378158375,1754752251361,-200.0,0.00024082,15]
[378158376,1754752251370,-200.0,0.00024082,15]
[378158377,1754752251380,-151.0,0.00024084,7]
[378158378,1754752251389,-4374.0,0.00024084,2]
[378158379,1754752251398,-3000.0,0.00024088,2]
[378158380,1754752251408,-150.23222237,0.000241,2]
[378158381,1754752251417,-151.234946,0.00024109,7]
[378158382,1754752251426,-460.0,0.00024109,2]
[378158383,1754752251436,-522.24924805,0.00024109,2]
[378158384,1754752251445,-460.0,0.00024109,2]
[378158385,1754752251454,-460.0,0.00024109,2]
[378158386,1754752251463,-460.0,0.00024109,2]
[378158387,1754752251474,-460.0,0.00024109,2]
[378158388,1754752251483,-460.0,0.00024109,2]
[378158389,1754752251492,-491.52373532,0.00024109,2]
[378158390,1754752251502,-151.0,0.00024109,7]
[378158391,1754752251511,-552.27,0.00024109,2]
[378158392,1754752251520,-151.0,0.00024109,7]
[378158393,1754752251529,-151.0,0.00024109,7]
[378158394,1754752251538,-151.0,0.00024109,7]
[378158395,1754752251547,-155.416666,0.00024109,7]
[378158396,1754752251557,-927.6,0.0002412,2]
[378158397,1754752251566,-243.37969701,0.00024152,2]
[378158398,1754752251576,-5000.0,0.00024162,2]
[378158399,1754752251586,-5000.0,0.00024164,2]
[378158400,1754752251595,-1513.69,0.00024181,2]
[378158401,1754752251604,-1393.84,0.00024181,2]
[378158402,1754752251614,-1968.56,0.00024181,2]
[378158403,1754752251623,-150.52451577,0.00024182,2]
[378158404,1754752251632,-150.0,0.00024182,2]
[378158405,1754752251642,-1527.82257883,0.00024209,2]
[378158406,1754752251652,-1500.0,0.00024209,2]
[378158407,1754752251661,-1500.0,0.00024209,2]
[378158408,1754752251670,-1500.0,0.00024209,2]
[378158409,1754752251684,-1500.0,0.00024209,2]
[378158410,1754752251693,-556.0,0.00024243,2]
[378158411,1754752251702,-460.0,0.00024244,2]
[378158412,1754752251712,-933.12,0.00024253,2]
[378158413,1754752251722,-586.5,0.00024253,2]
[378158414,1754752251731,-558.54,0.00024253,2]
[378158415,1754752251740,-504.62,0.00024253,2]
[378158416,1754752251750,-1024.96,0.00024253,2]
[378158417,1754752251759,-627.42,0.00024253,2]
[378158418,1754752251769,-1110.64,0.00024253,2]
[378158419,1754752251779,-759.38,0.00024279,2]
[378158420,1754752251788,-460.0,0.00024279,2]
[378158421,1754752251797,-1708.55,0.00024279,2]
[378158422,1754752251807,-476.07,0.00024279,2]
[378158423,1754752251816,-460.0,0.00024279,2]
[378158424,1754752251825,-966.51,0.00024279,2]
[378158425,1754752251834,-723.96,0.00024279,2]
[378158426,1754752251844,-151.0,0.0002428,7]
[378158427,1754752251853,-585.07,0.0002428,2]
[378158428,1754752251863,-460.0,0.0002428,2]
[378158429,1754752251872,-604.09,0.0002428,2]
[378158430,1754752251881,-636.19,0.0002428,2]
[378158431,1754752251890,-523.71,0.0002428,2]
[378158432,1754752251899,-460.0,0.0002428,2]
[378158433,1754752251909,-460.0,0.0002428,2]
[378158434,1754752251919,-3875.91,0.0002428,2]
[378158435,1754752251928,-460.0,0.0002428,2]
[378158436,1754752251938,-460.0,0.0002428,2]
[378158437,1754752251951,-460.0,0.0002428,2]
[378158438,1754752251961,-707.92,0.0002428,2]
[378158439,1754752251972,-670.59,0.0002428,2]
[378158440,1754752251981,-507.77,0.0002428,2]
[378158441,1754752251990,-460.0,0.0002428,2]
[378158442,1754752251999,-460.0,0.0002428,2]
[378158443,1754752252008,-1094.79,0.0002428,2]
[378158444,1754752252018,-590.28,0.0002428,2]
[378158445,1754752252027,-460.0,0.0002428,2]
[378158446,1754752252036,-1278.6,0.00024281,2]
[378158447,1754752252046,-460.0,0.00024281,2]
[378158448,1754752252054,-1182.16,0.00024281,2]
[378158449,1754752252064,-653.18,0.00024281,2]
[378158450,1754752252073,-1052.13338448,0.00024294,2]
[378158451,1754752252082,-4374.0,0.00024333,2]
[378158452,1754752252091,-408.0,0.00024355,2]
[378158453,1754752252100,-415.728,0.00024355,2]
[378158454,1754752252110,-151.0,0.00024383,7]
[378158455,1754752252123,-151.0,0.00024383,7]
[378158456,1754752252132,-151.0,0.00024383,7]
[378158457,1754752252141,-151.0,0.00024383,7]
[378158458,1754752252151,-381.209924,0.00024383,7]
[378158459,1754752252159,-381.209924,0.00024383,7]
[378158460,1754752252169,-151.0,0.00024383,7]
[378158461,1754752252179,-151.0,0.00024383,7]
[378158462,1754752252188,-460.0,0.00024383,2]
[378158463,1754752252197,-151.0,0.00024383,7]
[378158464,1754752252207,-151.0,0.00024383,7]
[378158465,1754752252216,-460.0,0.00024383,2]
[378158466,1754752252225,-460.0,0.00024383,2]
[378158467,1754752252235,-460.0,0.00024383,2]
[378158468,1754752252244,-460.0,0.00024383,2]
[378158469,1754752252253,-460.0,0.00024383,2]
[378158470,1754752252262,-151.0,0.00024383,7]
[378158471,1754752252271,-552.27,0.00024383,2]
[378158472,1754752252280,-151.0,0.00024383,7]
[378158473,1754752252290,-151.0,0.00024383,7]
[378158474,1754752252299,-151.0,0.00024383,7]
[378158475,1754752252308,-288.856446,0.00024383,7]
[378158476,1754752252318,-288.856446,0.00024383,7]
[378158477,1754752252327,-215.40758176,0.0002439,7]
[378158478,1754752252336,-527.77735381,0.0002439,7]
[378158479,1754752252346,-927.6,0.00024393,2]
[378158480,1754752252355,-555.79,0.00024398,2]
[378158481,1754752252365,-155.769433,0.000244,3]
[378158482,1754752252375,-312.16666667,0.000244,3]
[378158483,1754752252385,-215.40758176,0.000244,3]
[378158484,1754752252394,-527.77735381,0.000244,3]
[378158485,1754752252404,-842.95011917,0.000244,3]
[378158486,1754752252413,-842.95011917,0.000244,7]
[378158487,1754752252425,-160.0,0.000244,3]
[378158488,1754752252436,-160.0,0.000244,7]
[378158489,1754752252447,-461.55179734,0.000244,3]
[378158490,1754752252457,-461.55179734,0.000244,7]
[378158491,1754752252467,-231.92402426,0.000244,3]
[378158492,1754752252477,-231.92402426,0.000244,7]
[378158493,1754752252486,-160.0,0.000244,3]
[378158494,1754752252495,-160.0,0.000244,7]
[378158495,1754752252505,-12666.14847857,0.000244,3]
[378158496,1754752252514,-12666.14847857,0.000244,7]
[378158497,1754752252524,-160.0,0.000244,3]
[378158498,1754752252534,-160.0,0.000244,7]
[378158499,1754752252543,-457.995757,0.00024407,7]
[378158500,1754752252553,-457.995757,0.00024407,7]
[378158501,1754752252562,-151.0,0.00024407,7]
[378158502,1754752252571,-151.0,0.00024407,7]
[378158503,1754752252580,-556.0,0.00024433,2]
[378158504,1754752252590,-200.0,0.0002444,10]
[378158505,1754752252599,-1513.69,0.00024455,2]
[378158506,1754752252609,-1393.84,0.00024455,2]
[378158507,1754752252619,-1968.56,0.00024455,2]
[378158508,1754752252628,-933.12,0.00024527,2]
[378158509,1754752252637,-586.5,0.00024527,2]
[378158510,1754752252647,-558.54,0.00024527,2]
[378158511,1754752252657,-504.62,0.00024527,2]
[378158512,1754752252667,-1024.96,0.00024527,2]
[378158513,1754752252676,-627.42,0.00024527,2]
[378158514,1754752252686,-1110.64,0.00024527,2]
[378158515,1754752252695,-2400.0,0.00024531,2]
[378158516,1754752252705,-759.38,0.00024553,2]
[378158517,1754752252715,-460.0,0.00024553,2]
[378158518,1754752252725,-1708.55,0.00024553,2]
[378158519,1754752252734,-476.07,0.00024553,2]
[378158520,1754752252743,-460.0,0.00024553,2]
[378158521,1754752252753,-966.51,0.00024553,2]
[378158522,1754752252763,-723.96,0.00024553,2]
[378158523,1754752252773,-585.07,0.00024554,2]
[378158524,1754752252783,-460.0,0.00024554,2]
[378158525,1754752252794,-604.09,0.00024554,2]
[378158526,1754752252804,-636.19,0.00024554,2]
[378158527,1754752252814,-523.71,0.00024554,2]
[378158528,1754752252823,-460.0,0.00024554,2]
[378158529,1754752252833,-460.0,0.00024554,2]
[378158530,1754752252843,-3405.6830818,0.00024554,2]
[378158531,1754752253072,304.68,0.00027238,30]
[378158532,1754752253181,-491.81,0.00021654,2]
[378158533,1754752253190,-460.0,0.00021814,2]
[378158534,1754752253203,-460.0,0.00021814,2]
[378158535,1754752253213,-491.81,0.00021928,2]
[378158536,1754752253224,-491.81,0.00022202,2]
[378158537,1754752253233,-491.81,0.00022476,2]
[378158538,1754752253243,-491.81,0.0002275,2]
[378158539,1754752253252,-491.81,0.00023024,2]
[378158540,1754752253261,-262.24039807,0.00023301,2]
[378158541,1754752253271,-470.2269182,0.00024554,2]
[378158542,1754752253280,-460.0,0.00024554,2]
[378158543,1754752253290,-460.0,0.00024554,2]
[378158544,1754752253300,-460.0,0.00024554,2]
[378158545,1754752253309,-707.92,0.00024554,2]
[378158546,1754752253318,-670.59,0.00024554,2]
[378158547,1754752253328,-507.77,0.00024554,2]
[378158548,1754752253337,-460.0,0.00024554,2]
[378158549,1754752253346,-460.0,0.00024554,2]
[378158550,1754752253355,-654.77686822,0.00024554,2]
[378158551,1754752253648,-491.81,0.00023298,2]
[378158552,1754752253657,-491.81,0.00023572,2]
[378158553,1754752253667,-491.81,0.00023846,2]
[378158554,1754752253676,-491.81,0.0002412,2]
[378158555,1754752253686,-491.81,0.00024393,2]
[378158556,1754752253695,-216.61183532,0.000244,3]
[378158557,1754752253704,-216.61183532,0.000244,7]
[378158558,1754752253714,-440.01313178,0.00024554,2]
[378158559,1754752253726,-590.28,0.00024554,2]
[378158560,1754752253735,-603.74326982,0.00024554,2]
[378158561,1754752253745,-1278.6,0.00024555,2]
[378158562,1754752253754,-460.0,0.00024555,2]
[378158563,1754752253764,-1182.16,0.00024555,2]
[378158564,1754752253774,-653.18,0.00024555,2]
[378158565,1754752253783,-150.157,0.00024555,2]
[378158566,1754752253793,-150.0,0.00024555,2]
[378158567,1754752253802,-2150.0,0.00024555,2]
[378158568,1754752253811,-636.0,0.00024555,2]
[378158569,1754752253821,-971.0,0.00024555,2]
[378158570,1754752253832,-556.0,0.00024573,2]
[378158571,1754752253842,-556.0,0.00024586,2]
[378158572,1754752253853,-300.0,0.00024621,2]
[378158573,1754752253862,-597.62411359,0.00024657,2]
[378158574,1754752253872,-151.0,0.00024657,7]
[378158575,1754752253881,-151.0,0.00024657,7]
[378158576,1754752253891,-151.0,0.00024657,7]
[378158577,1754752253900,-151.0,0.00024657,7]
[378158578,1754752253909,-151.0,0.00024657,7]
[378158579,1754752253919,-460.0,0.00024657,2]
[378158580,1754752253928,-460.0,0.00024657,2]
[378158581,1754752253938,-460.0,0.00024657,2]
[378158582,1754752253948,-460.0,0.00024657,2]
[378158583,1754752253957,-460.0,0.00024657,2]
[378158584,1754752253967,-157.091636,0.00024657,7]
[378158585,1754752253977,-201.490995,0.00024657,7]
[378158586,1754752253987,-157.091636,0.00024657,7]
[378158587,1754752253996,-201.490995,0.00024657,7]
[378158588,1754752254005,-552.27,0.00024657,2]
[378158589,1754752254015,-2003.86,0.00024657,4]
[378158590,1754752254025,-151.0,0.00024657,7]
[378158591,1754752254034,-151.0,0.00024657,7]
[378158592,1754752254044,-200.0,0.00024658,15]
[378158593,1754752254055,-517.0,0.00024658,2]
[378158594,1754752254064,-500.0,0.00024658,2]
[378158595,1754752254074,-927.6,0.00024667,2]
[378158596,1754752254084,-491.81,0.00024667,2]
[378158597,1754752254093,-160.0,0.00024668,3]
[378158598,1754752254102,-312.16666667,0.000247,7]
[378158599,1754752254111,-1393.84,0.00024729,2]
[378158600,1754752254122,-1968.56,0.00024729,2]
[378158601,1754752254132,-250.0,0.0002473,2]
[378158602,1754752254141,-556.0,0.00024744,2]
[378158603,1754752254150,-2000.0,0.00024757,2]
[378158604,1754752254160,-1000.0,0.00024757,2]
[378158605,1754752254169,-2000.0,0.00024757,2]
[378158606,1754752254178,-560.0,0.00024792,2]
[378158607,1754752254187,-9393.90266385,0.000248,2]
[378158608,1754752254197,-151.0,0.000248,7]
[378158609,1754752254207,-151.0,0.000248,7]
[378158610,1754752254216,-329.69635784,0.000248,2]
[378158611,1754752254227,-151.0,0.000248,7]
[378158612,1754752254236,-151.0,0.000248,7]
[378158613,1754752254246,-933.12,0.00024801,2]
[378158614,1754752254255,-586.5,0.00024801,2]
[378158615,1754752254264,-558.54,0.00024801,2]
[378158616,1754752254273,-504.62,0.00024801,2]
[378158617,1754752254283,-1024.96,0.00024801,2]
[378158618,1754752254293,-627.42,0.00024801,2]
[378158619,1754752254302,-1110.64,0.00024801,2]
[378158620,1754752254311,-759.38,0.00024827,2]
[378158621,1754752254320,-460.0,0.00024827,2]
[378158622,1754752254329,-1708.55,0.00024827,2]
[378158623,1754752254339,-476.07,0.00024827,2]
[378158624,1754752254348,-460.0,0.00024827,2]
[378158625,1754752254358,-966.51,0.00024827,2]
[378158626,1754752254367,-723.96,0.00024827,2]
[378158627,1754752254376,-585.07,0.00024828,2]
[378158628,1754752254385,-460.0,0.00024828,2]
[378158629,1754752254395,-604.09,0.00024828,2]
[378158630,1754752254406,-636.19,0.00024828,2]
[378158631,1754752254415,-523.71,0.00024828,2]
[378158632,1754752254426,-460.0,0.00024828,2]
[378158633,1754752254435,-460.0,0.00024828,2]
[378158634,1754752254445,-3875.91,0.00024828,2]
[378158635,1754752254455,-460.0,0.00024828,2]
[378158636,1754752254464,-460.0,0.00024828,2]
[378158637,1754752254474,-460.0,0.00024828,2]
[378158638,1754752254483,-707.92,0.00024828,2]
[378158639,1754752254493,-670.59,0.00024828,2]
[378158640,1754752254503,-507.77,0.00024828,2]
[378158641,1754752254512,-460.0,0.00024828,2]
[378158642,1754752254522,-460.0,0.00024828,2]
[378158643,1754752254531,-1094.79,0.00024828,2]
[378158644,1754752254542,-590.28,0.00024828,2]
[378158645,1754752254551,-1278.6,0.00024829,2]
[378158646,1754752254561,-586.95337629,0.00024829,2]
[378158647,1754752254571,-1182.16,0.00024829,2]
[378158648,1754752254581,-653.18,0.00024829,2]
[378158649,1754752254591,-556.0,0.00024843,2]
[378158650,1754752254601,-556.0,0.00024857,2]
[378158651,1754752254610,-151.0,0.0002489,7]
[378158652,1754752254621,-151.0,0.0002489,7]
[378158653,1754752254630,-556.0,0.00024895,2]
[378158654,1754752254640,-151.0,0.000249,7]
[378158655,1754752254650,-151.0,0.000249,7]
[378158656,1754752254659,-151.0,0.000249,7]
[378158657,1754752254668,-151.0,0.000249,7]
[378158658,1754752254677,-151.0,0.000249,7]
[378158659,1754752254687,-151.0,0.000249,7]
[378158660,1754752254697,-151.0,0.000249,7]
[378158661,1754752254706,-151.0,0.000249,7]
[378158662,1754752254716,-182.995075,0.000249,7]
[378158663,1754752254725,-182.995075,0.000249,7]
[378158664,1754752254735,-151.0,0.000249,7]
[378158665,1754752254745,-151.0,0.000249,7]
[378158666,1754752254755,-151.0,0.000249,7]
[378158667,1754752254764,-151.0,0.000249,7]
[378158668,1754752254773,-381.209924,0.000249,7]
[378158669,1754752254782,-381.209924,0.000249,7]
[378158670,1754752254791,-151.0,0.000249,7]
[378158671,1754752254800,-151.0,0.000249,7]
[378158672,1754752254810,-151.0,0.000249,7]
[378158673,1754752254819,-151.0,0.000249,7]
[378158674,1754752254828,-151.0,0.000249,7]
[378158675,1754752254837,-151.0,0.000249,7]
[378158676,1754752254847,-151.0,0.000249,7]
[378158677,1754752254856,-151.0,0.000249,7]
[378158678,1754752254865,-908.0,0.000249,2]
[378158679,1754752254875,-157.091636,0.000249,7]
[378158680,1754752254885,-201.490995,0.000249,7]
[378158681,1754752254895,-157.091636,0.000249,7]
[378158682,1754752254904,-201.490995,0.000249,7]
[378158683,1754752254914,-151.0,0.000249,7]
[378158684,1754752254923,-457.995757,0.000249,7]
[378158685,1754752254934,-457.995757,0.000249,7]
[378158686,1754752254943,-151.0,0.000249,7]
[378158687,1754752254952,-151.0,0.000249,7]
[378158688,1754752254961,-151.0,0.000249,7]
[378158689,1754752254971,-151.0,0.000249,7]
[378158690,1754752254980,-151.0,0.000249,7]
[378158691,1754752254989,-219.910588,0.000249,7]
[378158692,1754752254998,-151.0,0.000249,7]
[378158693,1754752255007,-151.0,0.000249,7]
[378158694,1754752255016,-151.0,0.000249,7]
[378158695,1754752255026,-193.931732,0.000249,7]
[378158696,1754752255035,-288.856446,0.000249,7]
[378158697,1754752255045,-288.856446,0.000249,7]
[378158698,1754752255054,-2896.49379975,0.000249,2]
[378158699,1754752255068,-24848.41370397,0.000249,2]
[378158700,1754752255079,-28074.43644798,0.000249,2]
[378158701,1754752418639,6143.12934602,0.000199,2]
[378158702,1754752499857,210.08,0.00027677,30]
[378158703,1754752581882,239.31,0.00024767,30]
[378158704,1754752582301,478.61,0.00025946,30]
[378158705,1754752583225,717.92,0.00027125,30]
[378158706,1754752613963,6281.63748136,0.000199,2]
[378158707,1754752632516,207.35775175,0.00021451,2]
[378158708,1754752664213,293.23,0.00027513,30]
[378158709,1754752747551,349.49,0.00025242,30]
[378158710,1754752747996,698.98,0.00026444,30]
[378158711,1754752748413,1048.47,0.00027646,30]
[378158712,1754752764309,310205.0,0.00031562,30]
[378158713,1754752789789,-268.0,0.00021511,2]
[378158714,1754752789819,-300.0,0.00021511,2]
[378158715,1754752789848,-2595.61,0.00021511,2]
[378158716,1754752801407,6301.23309217,0.000199,2]
[378158717,1754752802831,300.0,0.00021511,2]
[378158718,1754752817734,2908.6130581,0.00020731,2]
[378158719,1754752829340,394.02,0.00022811,30]
[378158720,1754752830150,788.04,0.00023897,30]
[378158721,1754752830569,1182.05,0.00024983,30]
[378158722,1754752831048,1576.07,0.00026069,30]
[378158723,1754752831441,1970.09,0.00027155,30]
[378158724,1754752863008,300.0,0.00021511,2]
[378158725,1754752872339,624.5706156,0.00020708,2]
[378158726,1754752873309,874.61988495,0.00021413,2]
[378158727,1754752894656,637.57,0.00021511,2]
[378158728,1754752914164,415.91,0.00022741,30]
[378158729,1754752914636,831.83,0.00023824,30]
[378158730,1754752915070,1247.74,0.00024907,30]
[378158731,1754752915493,1663.65,0.0002599,30]
[378158732,1754752915906,2079.57,0.00027072,30]
[378158733,1754752944648,460.0,0.00021511,2]
[378158734,1754752950638,460.0,0.00021511,2]
[378158735,1754752962147,178.427466,0.00020708,2]
[378158736,1754752963933,460.0,0.00021511,2]
[378158737,1754752983084,167.74588318,0.00021511,2]
[378158738,1754752983112,132.25411682,0.00021511,2]
[378158739,1754752988213,19867.74588318,0.00020734,2]
[378158740,1754752988238,5032.25411682,0.00020734,2]
[378158741,1754752990639,6519.86107439,0.000199,2]
[378158742,1754753000033,460.0,0.00021511,2]
[378158743,1754753000531,434.25,0.00023166,30]
[378158744,1754753000990,868.49,0.00024269,30]
[378158745,1754753001903,1302.74,0.00025372,30]
[378158746,1754753002316,1736.99,0.00026476,30]
[378158747,1754753002539,1318.1,0.00021511,2]
[378158748,1754753002693,541.62,0.00021511,2]
[378158749,1754753002746,2171.23,0.00027579,30]
[378158751,1754753005255,355.311695,0.00013699,2]
[378158752,1754753005384,5000.0,0.00021511,2]
[378158753,1754753005511,355.311695,0.00020187,2]
[378158754,1754753016315,417.54141879,0.00021511,2]
[378158755,1754753016338,42.45858121,0.00021511,2]
[378158756,1754753036099,460.0,0.00021511,2]
[378158757,1754753042559,300.0,0.00021511,2]
[378158758,1754753057766,953.94,0.00021511,2]
[378158759,1754753062138,1167.75,0.00021511,2]
[378158762,1754753083697,483.13,0.00023423,30]
[378158763,1754753084119,966.26,0.00024539,30]
[378158764,1754753084539,1449.39,0.00025654,30]
[378158765,1754753084978,1932.52,0.0002677,30]
[378158766,1754753085474,2415.66,0.00027885,30]
[378158767,1754753098090,460.0,0.00021511,2]
[378158768,1754753102341,300.0,0.00021511,2]
[378158769,1754753118354,460.0,0.00021511,2]
[378158770,1754753118533,765.29239934,0.00021413,2]
[378158771,1754753133352,611.0,0.00021511,2]
[378158772,1754753155399,451.74252648,0.00021511,2]
[378158773,1754753162445,644.34,0.00021511,2]
[378158774,1754753162972,300.0,0.00021511,2]
[378158775,1754753167251,523.41,0.00023463,30]
[378158776,1754753167647,1046.82,0.0002458,30]
[378158777,1754753168532,1570.24,0.00025697,30]
[378158778,1754753168949,2093.65,0.00026815,30]
[378158779,1754753169364,2617.06,0.00027932,30]
[378158780,1754753174153,501.8,0.00021511,2]
[378158781,1754753187824,6259.92441646,0.000199,2]
[378158783,1754753207242,381.90418189,0.00021511,2]
[378158784,1754753209759,1312.37,0.00021511,2]
[378158785,1754753212482,1263.18,0.00021511,2]
[378158786,1754753212711,460.0,0.00021511,2]
[378158787,1754753218286,460.0,0.00021511,2]
[378158788,1754753222096,428.0,0.00021511,2]
[378158789,1754753222529,300.0,0.00021511,2]
[378158793,1754753226433,460.0,0.00021511,2]
[378158794,1754753235146,460.0,0.00021511,2]
[378158795,1754753238451,519.05,0.00021511,2]
[378158796,1754753243597,277.24789462,0.00021511,2]
[378158797,1754753243623,386.12210538,0.00021511,2]
[378158798,1754753247624,460.0,0.00021511,2]
[378158799,1754753248194,556.04,0.00023607,30]
[378158800,1754753248935,1112.09,0.00024731,30]
[378158801,1754753249402,1668.13,0.00025855,30]
[378158802,1754753249942,2224.18,0.0002698,30]
[378158803,1754753259580,460.0,0.00021511,2]
[378158804,1754753271586,18693.87789462,0.00018,2]
[378158805,1754753271611,20000.0,0.00018,2]